fUST/lending_fUST_20250811
["ID","MTS","AMOUNT","RATE_DAILY","PERIOD"]
[378559012,1754913059654,-460.0,0.00020154,2]
[378559013,1754913059663,-460.0,0.00020154,2]
[378559014,1754913059672,-460.0,0.00020154,2]
[378559015,1754913059680,-460.0,0.00020154,2]
[378559046,1754913060106,-460.0,0.00020154,2]
[378559050,1754913060136,-460.0,0.00020154,2]
[378559053,1754913060155,-460.0,0.00020154,2]
[378559056,1754913060170,-460.0,0.00020154,2]
[378559058,1754913060180,-460.0,0.00020154,2]
[378559059,1754913060190,-460.0,0.00020154,2]
[378559061,1754913060199,-460.0,0.00020154,2]
[378559063,1754913060210,-1258.85,0.00020154,2]
[378559065,1754913060221,-460.0,0.00020154,2]
[378559067,1754913060232,-460.0,0.00020154,2]
[378559069,1754913060245,-460.0,0.00020154,2]
[378559071,1754913060255,-156.91886596,0.00020154,2]
[378559074,1754913060265,-460.0,0.00020154,2]
[378559075,1754913060276,-460.0,0.00020154,2]
[378559077,1754913060286,-460.0,0.00020154,2]
[378559079,1754913060295,-460.0,0.00020154,2]
[378559081,1754913060306,-460.0,0.00020154,2]
[378559083,1754913060316,-460.0,0.00020154,2]
[378559085,1754913060327,-460.0,0.00020154,2]
[378559087,1754913060342,-460.0,0.00020154,2]
[378559089,1754913060352,-460.0,0.00020154,2]
[378559091,1754913060361,-460.0,0.00020154,2]
[378559093,1754913060371,-460.0,0.00020154,2]
[378559095,1754913060380,-460.0,0.00020154,2]
[378559097,1754913060390,-460.0,0.00020154,2]
[378559099,1754913060400,-467.86,0.00020154,2]
[378559101,1754913060410,-460.0,0.00020154,2]
[378559103,1754913060421,-460.0,0.00020154,2]
[378559105,1754913060431,-460.0,0.00020154,2]
[378559107,1754913060440,-460.0,0.00020154,2]
[378559109,1754913060450,-460.0,0.00020154,2]
[378559111,1754913060459,-460.0,0.00020154,2]
[378559113,1754913060469,-44.90061649,0.00020154,2]
[378562252,1754913092994,5726.4833719,0.0001862,2]
[378562916,1754913100129,1280.77939827,0.000189,2]
[378565283,1754913124850,2036.5073507,0.00018569,2]
[378568751,1754913189680,369.5151727,0.00018468,2]
[378568752,1754913189702,24530.4848273,0.00018468,2]
[378568758,1754913239260,5000.0,0.0001905,2]
[378568759,1754913256020,469.5151727,0.0001905,2]
[378568760,1754913256043,4530.4848273,0.0001905,2]
[378568761,1754913263931,374.41222298,0.0003,120]
[378568762,1754913272221,5000.0,0.0001905,2]
[378568763,1754913277310,236.0,0.0003,120]
[378568764,1754913288897,5000.0,0.0001905,2]
[378568765,1754913304519,5000.0,0.0001905,2]
[378568766,1754913320548,5000.0,0.0001905,2]
[378568767,1754913333895,5088.31,0.00023,30]
[378568768,1754913335529,5469.5151727,0.00018467,2]
[378568769,1754913335552,17923.3499345,0.00018467,2]
[378568770,1754913336634,5000.0,0.0001905,2]
[378568771,1754913353523,5000.0,0.0001905,2]
[378568772,1754913367691,-166.9356753,0.00019213,2]
[378568773,1754913368529,2076.6500655,0.0001905,2]
[378568774,1754913368552,2923.3499345,0.0001905,2]
[378568775,1754913384546,5000.0,0.0001905,2]
[378568776,1754913398788,208.4489713,0.00018441,2]
[378568777,1754913400605,5000.0,0.0001905,2]
[378568778,1754913401917,1162.78395034,0.000189,2]
[378568779,1754913416635,5000.0,0.0001905,2]
[378568780,1754913433094,5000.0,0.0001905,2]
[378568781,1754913441798,706.598656,0.00018464,2]
[378568782,1754913448854,4998.81848786,0.0001905,2]
[378568783,1754913448876,1.18151214,0.0001905,2]
[378568798,1754913465078,5000.0,0.0001905,2]
[378568799,1754913481833,5000.0,0.0001905,2]
[378568801,1754913497384,5000.0,0.0001905,2]
[378568803,1754913513123,5000.0,0.0001905,2]
[378568805,1754913528909,5000.0,0.0001905,2]
[378568806,1754913544869,4998.81848786,0.0001905,2]
[378568807,1754913544892,1.18151214,0.0001905,2]
[378568809,1754913561208,5000.0,0.0001905,2]
[378568810,1754913576665,5000.0,0.0001905,2]
[378568812,1754913592798,1123.76217573,0.0001905,2]
[378568813,1754913602168,183.380791,0.0001879,2]
[378568814,1754913602676,1045.14982424,0.00018791,2]
[378568815,1754913627514,10000.0,0.00018393,2]
[378568816,1754913638071,611.300825,0.00013699,2]
[378568818,1754913703211,775.18930022,0.000189,2]
[378568823,1754913926703,6260.03557167,0.00018511,2]
[378568824,1754913926727,2415.97943863,0.00018511,2]
[378568843,1754913986278,163.1285328,0.00019046,2]
[378568844,1754914004506,516.79286682,0.000189,2]
[378568886,1754914231942,531.74364107,0.00019044,2]
[378569252,1754914235836,-244.97602216,0.00019131,2]
[378569253,1754914235845,-300.0,0.00019144,2]
[378569254,1754914235855,-1200.0,0.00019144,2]
[378569255,1754914235864,-508.94600318,0.00019145,2]
[378569256,1754914235876,-691.05399682,0.00019145,2]
[378569257,1754914235885,-300.0,0.00019145,2]
[378569259,1754914235896,-300.0,0.00019145,2]
[378569261,1754914235905,-300.0,0.00019145,2]
[378569264,1754914235915,-213.43741262,0.00019145,2]
[378569434,1754914237774,-86.56258738,0.00019145,2]
[378569436,1754914237784,-690.89894101,0.00019146,2]
[378569438,1754914237793,-2763.59576405,0.00019146,2]
[378569439,1754914237802,-6211.87237864,0.00019146,2]
[378569441,1754914237811,-403.55427093,0.00019151,2]
[378569442,1754914237824,-118.57570103,0.00019151,2]
[378569444,1754914237833,-11.5005747,0.00019213,2]
[378569446,1754914237842,-414.63599577,0.00019213,2]
[378569448,1754914237851,-2307.20359745,0.00019213,2]
[378569449,1754914237860,-3715.71094067,0.00019268,2]
[378569451,1754914237869,-2183.31810187,0.00019361,2]
[378569453,1754914237878,-360.0,0.00019365,2]
[378569455,1754914237888,-289.76601394,0.00019365,2]
[378569456,1754914237897,-398.38,0.00019365,2]
[378569457,1754914237906,-500.0,0.00019365,2]
[378569458,1754914237916,-500.0,0.00019365,2]
[378569459,1754914237925,-500.0,0.00019365,2]
[378569460,1754914237935,-500.0,0.00019365,2]
[378569461,1754914237944,-500.0,0.00019365,2]
[378569462,1754914237953,-450.52729701,0.00019365,2]
[378569463,1754914237962,-258.39160662,0.00019365,2]
[378569464,1754914237971,-500.0,0.00019365,2]
[378569465,1754914237980,-500.0,0.00019365,2]
[378569466,1754914237989,-335.32924217,0.00019365,2]
[378569467,1754914238000,-284.67075783,0.00019365,2]
[378569468,1754914238009,-395.1983426,0.00019366,2]
[378569469,1754914238018,-5798.02326376,0.00019366,2]
[378569470,1754914238029,-3913.30582821,0.00019366,2]
[378569471,1754914238041,-9982.21024616,0.00019366,2]
[378569472,1754914238052,-483.2568244,0.00019366,2]
[378569473,1754914238068,-7630.57321142,0.00019366,2]
[378569474,1754914238081,-794.61667835,0.00019366,2]
[378569475,1754914238093,-21398.0139477,0.00019366,2]
[378569476,1754914238103,-2264.10087164,0.00019416,2]
[378569477,1754914238112,-395.19834259,0.00019444,2]
[378569478,1754914238121,-717.42,0.00019455,3]
[378569479,1754914238130,-1585.31,0.00019455,3]
[378569480,1754914238139,-792.65,0.00019455,3]
[378569481,1754914238148,-396.33,0.00019455,3]
[378569482,1754914238158,-198.16,0.00019455,3]
[378569483,1754914238167,-594.53,0.00019455,3]
[378569484,1754914238176,-151.0,0.00019456,2]
[378569485,1754914238185,-151.0,0.00019456,2]
[378569486,1754914238195,-151.0,0.00019456,2]
[378569487,1754914238204,-300.0,0.00019456,2]
[378569488,1754914238213,-151.0,0.00019456,2]
[378569489,1754914238222,-151.0,0.00019456,2]
[378569490,1754914238231,-151.0,0.00019456,2]
[378569491,1754914238241,-151.0,0.00019456,2]
[378569492,1754914238251,-300.0,0.00019456,2]
[378569493,1754914238260,-151.0,0.00019456,2]
[378569494,1754914238269,-1000.0,0.00019456,2]
[378569495,1754914238279,-151.0,0.00019456,2]
[378569496,1754914238288,-151.0,0.00019456,2]
[378569497,1754914238297,-300.0,0.00019456,2]
[378569498,1754914238306,-151.0,0.00019456,2]
[378569499,1754914238316,-151.0,0.00019456,2]
[378569500,1754914238325,-1000.0,0.00019456,2]
[378569501,1754914238334,-151.0,0.00019456,2]
[378569502,1754914238344,-300.0,0.00019456,2]
[378569503,1754914238353,-151.0,0.00019456,2]
[378569504,1754914238362,-151.0,0.00019456,2]
[378569505,1754914238371,-1000.0,0.00019456,2]
[378569506,1754914238380,-151.0,0.00019456,2]
[378569507,1754914238389,-300.0,0.00019456,2]
[378569508,1754914238398,-151.0,0.00019456,2]
[378569509,1754914238407,-151.0,0.00019456,2]
[378569510,1754914238417,-151.0,0.00019456,2]
[378569511,1754914238425,-151.0,0.00019456,2]
[378569512,1754914238435,-300.0,0.00019456,2]
[378569513,1754914238444,-151.0,0.00019456,2]
[378569514,1754914238454,-151.0,0.00019456,2]
[378569515,1754914238463,-1000.0,0.00019456,2]
[378569516,1754914238472,-151.0,0.00019456,2]
[378569517,1754914238482,-151.0,0.00019456,2]
[378569518,1754914238492,-300.0,0.00019456,2]
[378569519,1754914238501,-151.0,0.00019456,2]
[378569520,1754914238511,-151.0,0.00019456,2]
[378569521,1754914238520,-1000.0,0.00019456,2]
[378569522,1754914238529,-151.0,0.00019456,2]
[378569523,1754914238539,-151.0,0.00019456,2]
[378569524,1754914238548,-151.0,0.00019456,2]
[378569525,1754914238557,-151.0,0.00019456,2]
[378569526,1754914238569,-300.0,0.00019456,2]
[378569527,1754914238580,-151.0,0.00019456,2]
[378569528,1754914238590,-1000.0,0.00019456,2]
[378569529,1754914238599,-151.0,0.00019456,2]
[378569530,1754914238608,-256.43342021,0.00019456,2]
[378569531,1754914238618,-151.0,0.00019456,2]
[378569532,1754914238627,-151.0,0.00019456,2]
[378569533,1754914238636,-300.0,0.00019456,2]
[378569534,1754914238645,-1000.0,0.00019456,2]
[378569535,1754914238655,-151.0,0.00019456,2]
[378569536,1754914238664,-151.0,0.00019456,2]
[378569537,1754914238674,-151.0,0.00019456,2]
[378569538,1754914238684,-151.0,0.00019456,2]
[378569539,1754914238693,-300.0,0.00019456,2]
[378569540,1754914238702,-1000.0,0.00019456,2]
[378569541,1754914238711,-151.0,0.00019456,2]
[378569542,1754914238720,-151.0,0.00019456,2]
[378569543,1754914238729,-151.0,0.00019456,2]
[378569544,1754914238738,-151.0,0.00019456,2]
[378569545,1754914238747,-151.0,0.00019456,2]
[378569546,1754914238756,-151.0,0.00019456,2]
[378569547,1754914238765,-1000.0,0.00019456,2]
[378569548,1754914238774,-300.0,0.00019456,2]
[378569549,1754914238784,-1000.0,0.00019456,2]
[378569550,1754914238793,-151.0,0.00019456,2]
[378569551,1754914238802,-151.0,0.00019456,2]
[378569552,1754914238811,-151.0,0.00019456,2]
[378569553,1754914238821,-151.0,0.00019456,2]
[378569554,1754914238831,-300.0,0.00019456,2]
[378569555,1754914238840,-151.0,0.00019456,2]
[378569556,1754914238850,-151.0,0.00019456,2]
[378569557,1754914238859,-300.0,0.00019456,2]
[378569558,1754914238868,-151.0,0.00019456,2]
[378569559,1754914238877,-151.0,0.00019456,2]
[378569560,1754914238887,-151.0,0.00019456,2]
[378569561,1754914238896,-151.0,0.00019456,2]
[378569562,1754914238906,-1000.0,0.00019456,2]
[378569563,1754914238915,-300.0,0.00019456,2]
[378569564,1754914238924,-151.0,0.00019456,2]
[378569565,1754914238933,-151.0,0.00019456,2]
[378569566,1754914238943,-151.0,0.00019456,2]
[378569567,1754914238953,-151.0,0.00019456,2]
[378569568,1754914238962,-151.0,0.00019456,2]
[378569569,1754914238971,-1000.0,0.00019456,2]
[378569570,1754914238981,-300.0,0.00019456,2]
[378569571,1754914238990,-151.0,0.00019456,2]
[378569572,1754914239000,-151.0,0.00019456,2]
[378569573,1754914239009,-151.0,0.00019456,2]
[378569574,1754914239018,-151.0,0.00019456,2]
[378569575,1754914239027,-151.0,0.00019456,2]
[378569576,1754914239037,-1000.0,0.00019456,2]
[378569578,1754914239046,-300.0,0.00019456,2]
[378569580,1754914239056,-151.0,0.00019456,2]
[378569581,1754914239065,-151.0,0.00019456,2]
[378569583,1754914239075,-151.0,0.00019456,2]
[378569585,1754914239084,-151.0,0.00019456,2]
[378569586,1754914239094,-151.0,0.00019456,2]
[378569588,1754914239103,-151.0,0.00019456,2]
[378569590,1754914239112,-1000.0,0.00019456,2]
[378569592,1754914239121,-151.0,0.00019456,2]
[378569593,1754914239131,-151.0,0.00019456,2]
[378569595,1754914239140,-151.0,0.00019456,2]
[378569597,1754914239149,-151.0,0.00019456,2]
[378569599,1754914239159,-151.0,0.00019456,2]
[378569601,1754914239168,-1000.0,0.00019456,2]
[378569602,1754914239178,-151.0,0.00019456,2]
[378569603,1754914239187,-151.0,0.00019456,2]
[378569604,1754914239197,-151.0,0.00019456,2]
[378569605,1754914239206,-1000.0,0.00019456,2]
[378569606,1754914239215,-151.0,0.00019456,2]
[378569607,1754914239225,-151.0,0.00019456,2]
[378569608,1754914239234,-151.0,0.00019456,2]
[378569609,1754914239243,-151.0,0.00019456,2]
[378569610,1754914239254,-151.0,0.00019456,2]
[378569611,1754914239263,-151.0,0.00019456,2]
[378569613,1754914239273,-151.0,0.00019456,2]
[378569614,1754914239282,-151.0,0.00019456,2]
[378569616,1754914239291,-197.12369318,0.00019456,2]
[378569618,1754914239301,-151.0,0.00019456,2]
[378569619,1754914239310,-151.0,0.00019456,2]
[378569620,1754914239319,-151.0,0.00019456,2]
[378569621,1754914239331,-151.0,0.00019456,2]
[378569622,1754914239340,-151.0,0.00019456,2]
[378569623,1754914239350,-151.0,0.00019456,2]
[378569624,1754914239359,-151.0,0.00019456,2]
[378569625,1754914239368,-230.72414637,0.00019456,2]
[378569626,1754914239378,-151.0,0.00019456,2]
[378569627,1754914239388,-250.0,0.00019456,2]
[378569628,1754914239397,-151.0,0.00019456,2]
[378569629,1754914239406,-250.0,0.00019456,2]
[378569630,1754914239416,-151.0,0.00019456,2]
[378569631,1754914239425,-250.0,0.00019456,2]
[378569632,1754914239435,-151.0,0.00019456,2]
[378569633,1754914239444,-250.0,0.00019456,2]
[378569635,1754914239454,-151.0,0.00019456,2]
[378569637,1754914239464,-250.0,0.00019456,2]
[378569638,1754914239473,-250.0,0.00019456,2]
[378569639,1754914239483,-250.0,0.00019456,2]
[378569640,1754914239492,-151.0,0.00019456,2]
[378569641,1754914239501,-18502.69577858,0.00019456,2]
[378569642,1754914239511,-250.0,0.00019456,2]
[378569643,1754914239521,-151.0,0.00019456,2]
[378569644,1754914239530,-250.0,0.00019456,2]
[378569645,1754914239540,-151.0,0.00019456,2]
[378569647,1754914239549,-666.0,0.00019465,2]
[378569648,1754914239559,-460.0,0.00019465,2]
[378569649,1754914239570,-460.0,0.00019465,2]
[378569650,1754914239580,-460.0,0.00019465,2]
[378569651,1754914239589,-460.0,0.00019465,2]
[378569652,1754914239599,-460.0,0.00019465,2]
[378569653,1754914239609,-460.0,0.00019465,2]
[378569654,1754914239619,-462.36132709,0.00019465,2]
[378569655,1754914239629,-460.0,0.00019465,2]
[378569656,1754914239638,-460.0,0.00019465,2]
[378569657,1754914239649,-460.0,0.00019465,2]
[378569658,1754914239658,-546.80452317,0.00019465,2]
[378569659,1754914239668,-460.0,0.00019465,2]
[378569660,1754914239677,-460.0,0.00019465,2]
[378569661,1754914239686,-460.0,0.00019465,2]
[378569662,1754914239696,-460.0,0.00019465,2]
[378569663,1754914239705,-460.0,0.00019465,2]
[378569664,1754914239715,-460.0,0.00019465,2]
[378569665,1754914239724,-460.0,0.00019465,2]
[378569666,1754914239733,-460.0,0.00019465,2]
[378569667,1754914239742,-460.0,0.00019465,2]
[378569668,1754914239752,-461.32891208,0.00019465,2]
[378569669,1754914239761,-460.0,0.00019465,2]
[378569670,1754914239770,-460.0,0.00019465,2]
[378569671,1754914239780,-460.0,0.00019465,2]
[378569672,1754914239789,-460.0,0.00019465,2]
[378569673,1754914239798,-460.0,0.00019465,2]
[378569674,1754914239807,-460.0,0.00019465,2]
[378569675,1754914239816,-462.92474889,0.00019465,2]
[378569676,1754914239826,-460.0,0.00019465,2]
[378569677,1754914239835,-460.0,0.00019465,2]
[378569678,1754914239844,-460.0,0.00019465,2]
[378569679,1754914239855,-460.0,0.00019465,2]
[378569680,1754914239865,-460.0,0.00019465,2]
[378569681,1754914239874,-460.0,0.00019465,2]
[378569682,1754914239883,-460.0,0.00019465,2]
[378569683,1754914239893,-460.0,0.00019465,2]
[378569684,1754914239902,-460.0,0.00019465,2]
[378569685,1754914239911,-460.0,0.00019465,2]
[378569686,1754914239921,-461.71276164,0.00019465,2]
[378569687,1754914239930,-460.0,0.00019465,2]
[378569688,1754914239939,-460.0,0.00019465,2]
[378569689,1754914239949,-460.0,0.00019465,2]
[378569690,1754914239958,-460.0,0.00019465,2]
[378569691,1754914239967,-460.0,0.00019465,2]
[378569692,1754914239976,-663.91,0.00019465,2]
[378569693,1754914239986,-522.02749888,0.00019465,2]
[378569694,1754914239994,-460.0,0.00019465,2]
[378569695,1754914240004,-465.81502534,0.00019465,2]
[378569696,1754914240013,-460.0,0.00019465,2]
[378569697,1754914240023,-383.75736165,0.00019465,2]
[378569698,1754914240032,-460.0,0.00019465,2]
[378569699,1754914240041,-460.0,0.00019465,2]
[378569700,1754914240050,-460.0,0.00019465,2]
[378569701,1754914240059,-460.0,0.00019465,2]
[378569702,1754914240068,-516.24,0.00019465,2]
[378569703,1754914240079,-460.0,0.00019465,2]
[378569704,1754914240088,-460.0,0.00019465,2]
[378569705,1754914240097,-460.0,0.00019465,2]
[378569706,1754914240107,-472.33,0.00019465,2]
[378569707,1754914240115,-460.0,0.00019465,2]
[378569708,1754914240124,-460.0,0.00019465,2]
[378569709,1754914240133,-460.0,0.00019465,2]
[378569710,1754914240143,-460.0,0.00019465,2]
[378569711,1754914240152,-460.0,0.00019465,2]
[378569712,1754914240162,-460.0,0.00019465,2]
[378569713,1754914240171,-460.0,0.00019465,2]
[378569714,1754914240180,-255.09495148,0.00019465,2]
[378569715,1754914240189,-460.0,0.00019465,2]
[378569716,1754914240198,-462.82593689,0.00019465,2]
[378569717,1754914240207,-287.15319552,0.00019465,2]
[378569718,1754914240216,-460.0,0.00019465,2]
[378569719,1754914240225,-460.0,0.00019465,2]
[378569720,1754914240234,-460.0,0.00019465,2]
[378569721,1754914240243,-245.95194641,0.00019465,2]
[378569722,1754914240252,-460.0,0.00019465,2]
[378569723,1754914240261,-460.0,0.00019465,2]
[378569724,1754914240271,-460.0,0.00019465,2]
[378569725,1754914240280,-460.0,0.00019465,2]
[378569726,1754914240289,-460.0,0.00019465,2]
[378569727,1754914240300,-460.0,0.00019465,2]
[378569728,1754914240309,-460.0,0.00019465,2]
[378569729,1754914240318,-460.0,0.00019465,2]
[378569730,1754914240329,-460.0,0.00019465,2]
[378569731,1754914240338,-523.76,0.00019465,2]
[378569732,1754914240347,-460.0,0.00019465,2]
[378569733,1754914240357,-460.0,0.00019465,2]
[378569734,1754914240366,-460.0,0.00019465,2]
[378569735,1754914240375,-460.0,0.00019465,2]
[378569736,1754914240384,-460.0,0.00019465,2]
[378569737,1754914240393,-460.0,0.00019465,2]
[378569738,1754914240402,-460.0,0.00019465,2]
[378569739,1754914240412,-460.0,0.00019465,2]
[378569740,1754914240422,-460.0,0.00019465,2]
[378569741,1754914240432,-460.0,0.00019465,2]
[378569742,1754914240441,-460.0,0.00019465,2]
[378569743,1754914240451,-460.0,0.00019465,2]
[378569744,1754914240460,-460.0,0.00019465,2]
[378569745,1754914240469,-460.0,0.00019465,2]
[378569746,1754914240478,-460.0,0.00019465,2]
[378569747,1754914240487,-460.0,0.00019465,2]
[378569748,1754914240496,-460.0,0.00019465,2]
[378569749,1754914240505,-460.0,0.00019465,2]
[378569750,1754914240514,-460.0,0.00019465,2]
[378569751,1754914240523,-471.389391,0.00019465,2]
[378569752,1754914240532,-1139.36,0.00019465,2]
[378569753,1754914240542,-464.70874802,0.00019465,2]
[378569754,1754914240551,-1327.54,0.00019465,2]
[378569755,1754914240561,-460.0,0.00019465,2]
[378569756,1754914240578,-460.0,0.00019465,2]
[378569757,1754914240591,-460.0,0.00019465,2]
[378569758,1754914240600,-460.0,0.00019465,2]
[378569759,1754914240609,-460.0,0.00019465,2]
[378569760,1754914240618,-551.88,0.00019465,2]
[378569761,1754914240628,-460.0,0.00019465,2]
[378569762,1754914240637,-460.0,0.00019465,2]
[378569763,1754914240647,-1191.61,0.00019465,2]
[378569764,1754914240657,-716.09,0.00019465,2]
[378569765,1754914240666,-1658.14,0.00019465,2]
[378569766,1754914240675,-460.0,0.00019465,2]
[378569767,1754914240685,-460.0,0.00019465,2]
[378569768,1754914240694,-460.0,0.00019465,2]
[378569769,1754914240703,-460.0,0.00019465,2]
[378569770,1754914240712,-460.0,0.00019465,2]
[378569771,1754914240722,-460.0,0.00019465,2]
[378569772,1754914240731,-460.0,0.00019465,2]
[378569773,1754914240741,-460.0,0.00019465,2]
[378569774,1754914240750,-460.0,0.00019465,2]
[378569775,1754914240760,-5164.89,0.00019465,2]
[378569776,1754914240768,-460.0,0.00019465,2]
[378569777,1754914240778,-3332.6,0.00019465,2]
[378569778,1754914240787,-460.0,0.00019465,2]
[378569779,1754914240796,-1024.82,0.00019465,2]
[378569780,1754914240805,-460.0,0.00019465,2]
[378569781,1754914240814,-460.0,0.00019465,2]
[378569782,1754914240824,-854.73,0.00019465,2]
[378569783,1754914240833,-460.0,0.00019465,2]
[378569784,1754914240843,-460.0,0.00019465,2]
[378569785,1754914240852,-460.0,0.00019465,2]
[378569786,1754914240861,-460.0,0.00019465,2]
[378569787,1754914240870,-460.0,0.00019465,2]
[378569788,1754914240879,-613.83,0.00019465,2]
[378569789,1754914240888,-460.0,0.00019465,2]
[378569790,1754914240897,-460.0,0.00019465,2]
[378569791,1754914240905,-460.0,0.00019465,2]
[378569792,1754914240915,-460.0,0.00019465,2]
[378569793,1754914240924,-991.04,0.00019465,2]
[378569794,1754914240933,-460.0,0.00019465,2]
[378569795,1754914240942,-296.6130478,0.00019465,2]
[378569796,1754914240952,-460.0,0.00019465,2]
[378569797,1754914240961,-575.93919986,0.00019465,2]
[378569798,1754914240986,-898.59071365,0.00019465,2]
[378569799,1754914240997,-413.300005,0.00019465,2]
[378569800,1754914241008,-1294.13008149,0.00019465,2]
[378569801,1754914241018,-136.56627264,0.00019465,2]
[378569802,1754914241029,-323.43372736,0.00019465,2]
[378569803,1754914241038,-441.07627264,0.00019465,2]
[378569838,1754914241490,-250.0,0.00019456,2]
[378569840,1754914241500,-151.0,0.00019456,2]
[378569842,1754914241509,-250.0,0.00019456,2]
[378569864,1754914241708,-151.0,0.00019456,2]
[378569866,1754914241720,-400.57372736,0.00019465,2]
[378569868,1754914241730,-460.0,0.00019465,2]
[378569870,1754914241739,-1168.24,0.00019465,2]
[378569872,1754914241750,-460.0,0.00019465,2]
[378569874,1754914241759,-460.0,0.00019465,2]
[378569876,1754914241769,-462.31561383,0.00019465,2]
[378569878,1754914241778,-1894.81,0.00019465,2]
[378569880,1754914241788,-460.0,0.00019465,2]
[378569882,1754914241797,-460.0,0.00019465,2]
[378569884,1754914241807,-460.0,0.00019465,2]
[378569886,1754914241816,-460.0,0.00019465,2]
[378569888,1754914241827,-460.0,0.00019465,2]
[378569890,1754914241836,-460.0,0.00019465,2]
[378569892,1754914241846,-670.47775889,0.00019465,2]
[378569894,1754914241858,-524.31224111,0.00019465,2]
[378569896,1754914241868,-296.09775894,0.00019465,2]
[378569899,1754914241880,-163.90224106,0.00019465,2]
[378569901,1754914241889,-259.77353172,0.00019465,2]
[378569903,1754914241903,-200.22646828,0.00019465,2]
[378569905,1754914241913,-460.0,0.00019465,2]
[378569907,1754914241922,-605.13,0.00019465,2]
[378569909,1754914241932,-460.0,0.00019465,2]
[378569911,1754914241941,-403.32046449,0.00019465,2]
[378569914,1754914241957,-56.67953551,0.00019465,2]
[378569916,1754914241967,-763.2,0.00019465,2]
[378569918,1754914241976,-843.4,0.00019465,2]
[378569919,1754914241986,-460.0,0.00019465,2]
[378569922,1754914241995,-460.0,0.00019465,2]
[378569924,1754914242005,-460.0,0.00019465,2]
[378569925,1754914242014,-460.0,0.00019465,2]
[378569927,1754914242023,-739.64,0.00019465,2]
[378569929,1754914242033,-639.25,0.00019465,2]
[378569931,1754914242042,-460.0,0.00019465,2]
[378569934,1754914242052,-478.66,0.00019465,2]
[378569936,1754914242061,-460.0,0.00019465,2]
[378569937,1754914242070,-460.0,0.00019465,2]
[378569939,1754914242080,-460.0,0.00019465,2]
[378569941,1754914242089,-460.0,0.00019465,2]
[378569943,1754914242098,-882.31,0.00019465,2]
[378569945,1754914242108,-460.0,0.00019465,2]
[378569947,1754914242117,-460.0,0.00019465,2]
[378569949,1754914242126,-1024.51,0.00019465,2]
[378569951,1754914242135,-460.0,0.00019465,2]
[378569953,1754914242145,-628.86,0.00019465,2]
[378569955,1754914242154,-713.22,0.00019465,2]
[378569957,1754914242163,-460.0,0.00019465,2]
[378569959,1754914242173,-460.0,0.00019465,2]
[378569961,1754914242182,-1036.3,0.00019465,2]
[378569963,1754914242192,-460.0,0.00019465,2]
[378569965,1754914242201,-541.44,0.00019465,2]
[378569967,1754914242212,-460.0,0.00019465,2]
[378569969,1754914242221,-460.0,0.00019466,2]
[378569971,1754914242231,-460.0,0.00019466,2]
[378569973,1754914242241,-460.0,0.00019466,2]
[378569975,1754914242250,-460.0,0.00019466,2]